[Event "Titled Tuesday Blitz July 27 2021"]
[White "Mirzoev, Azer"]
[Black "Nugumanov, Bakhtiyar"]
[WhiteFideId "13400304"]
[BlackFideId "13701797"]
[WhiteElo "2525"]
[BlackElo "2262"]
[Result "0-1"]
[Round "06"]
[TimeControl "180+1"]
[Date "2021.07.27"]
[WhiteClock "0:00:46"]
[BlackClock "0:00:11"]

1. d4 {[%clk 0:03:00]}  Nf6 {[%clk 0:02:55]} 2. c4 {[%clk 0:03:00]}  g6 {[%clk 0:02:54]} 3. Nc3 {[%clk 0:03:01]}  Bg7 {[%clk 0:02:55]} 4. e4 {[%clk 0:03:01]}  d6 {[%clk 0:02:55]} 5. f3 {[%clk 0:03:02]}  O-O {[%clk 0:02:56]} 6. Be3 {[%clk 0:03:02]}  a6 {[%clk 0:02:55]} 7. Nge2 {[%clk 0:03:01]}  Nbd7 {[%clk 0:02:54]} 8. Qd2 {[%clk 0:03:00]}  c6 {[%clk 0:02:54]} 9. c5 {[%clk 0:02:48]}  dxc5 {[%clk 0:02:38]} 10. dxc5 {[%clk 0:02:48]}  Qc7 {[%clk 0:02:33]} 11. Nc1 {[%clk 0:02:43]}  Ne5 {[%clk 0:02:32]} 12. Be2 {[%clk 0:02:29]}  Rd8 {[%clk 0:02:31]} 13. Qc2 {[%clk 0:02:29]}  Be6 {[%clk 0:02:31]} 14. b3 {[%clk 0:02:29]}  Qa5 {[%clk 0:02:13]} 15. a3 {[%clk 0:02:20]}  Qc7 {[%clk 0:01:34]} 16. O-O {[%clk 0:02:16]}  h5 {[%clk 0:01:25]} 17. Rb1 {[%clk 0:02:04]}  a5 {[%clk 0:01:23]} 18. Na4 {[%clk 0:01:59]}  Ned7 {[%clk 0:01:04]} 19. Nd3 {[%clk 0:01:51]}  Nh7 {[%clk 0:00:56]} 20. h3 {[%clk 0:01:43]}  Bxh3 {[%clk 0:00:52]} 21. Bf4 {[%clk 0:01:43]}  e5 {[%clk 0:00:52]} 22. Be3 {[%clk 0:01:35]}  Be6 {[%clk 0:00:51]} 23. Ndb2 {[%clk 0:01:34]}  h4 {[%clk 0:00:48]} 24. Bc4 {[%clk 0:01:33]}  Ndf8 {[%clk 0:00:41]} 25. Qf2 {[%clk 0:01:27]}  h3 {[%clk 0:00:38]} 26. g3 {[%clk 0:01:25]}  Bf6 {[%clk 0:00:29]} 27. Kh2 {[%clk 0:01:24]}  Bg5 {[%clk 0:00:27]} 28. Nb6 {[%clk 0:01:22]}  Rab8 {[%clk 0:00:23]} 29. Rbd1 {[%clk 0:01:22]}  Bxe3 {[%clk 0:00:21]} 30. Qxe3 {[%clk 0:01:22]}  Rxd1 {[%clk 0:00:22]} 31. Rxd1 {[%clk 0:01:20]}  Rd8 {[%clk 0:00:23]} 32. Bxe6 {[%clk 0:01:13]}  Nxe6 {[%clk 0:00:22]} 33. Kxh3 {[%clk 0:01:13]}  Rxd1 {[%clk 0:00:21]} 34. Nxd1 {[%clk 0:01:13]}  Nd4 {[%clk 0:00:19]} 35. Kg2 {[%clk 0:01:10]}  Qe7 {[%clk 0:00:18]} 36. b4 {[%clk 0:01:10]}  axb4 {[%clk 0:00:19]} 37. axb4 {[%clk 0:01:10]}  Ng5 {[%clk 0:00:17]} 38. f4 {[%clk 0:01:05]}  Nge6 {[%clk 0:00:17]} 39. Nf2 {[%clk 0:01:02]}  exf4 {[%clk 0:00:15]} 40. gxf4 {[%clk 0:01:03]}  Qh4 {[%clk 0:00:16]} 41. Nh3 {[%clk 0:01:02]}  Qg4+ {[%clk 0:00:15]} 42. Kf2 {[%clk 0:01:01]}  Nc2 {[%clk 0:00:14]} 43. Qf3 {[%clk 0:01:00]}  Qh4+ {[%clk 0:00:12]} 44. Qg3 {[%clk 0:01:00]}  Qxg3+ {[%clk 0:00:11]} 45. Kxg3 {[%clk 0:01:00]}  Nxb4 {[%clk 0:00:12]} 46. Nd7 {[%clk 0:01:00]}  Nd3 {[%clk 0:00:12]} 47. f5 {[%clk 0:00:56]}  gxf5 {[%clk 0:00:11]} 48. exf5 {[%clk 0:00:56]}  Nexc5 {[%clk 0:00:12]} 49. Nb6 {[%clk 0:00:57]}  Kf8 {[%clk 0:00:11]} 50. Ng5 {[%clk 0:00:55]}  Ke7 {[%clk 0:00:11]} 51. Kf3 {[%clk 0:00:55]}  Nd7 {[%clk 0:00:10]} 52. Nc4 {[%clk 0:00:54]}  N3e5+ {[%clk 0:00:09]} 53. Nxe5 {[%clk 0:00:54]}  Nxe5+ {[%clk 0:00:10]} 54. Ke4 {[%clk 0:00:55]}  f6 {[%clk 0:00:10]} 55. Ne6 {[%clk 0:00:55]}  Kd6 {[%clk 0:00:08]} 56. Nf4 {[%clk 0:00:54]}  b5 {[%clk 0:00:07]} 57. Nh5 {[%clk 0:00:55]}  Ke7 {[%clk 0:00:07]} 58. Nf4 {[%clk 0:00:55]}  Nd7 {[%clk 0:00:07]} 59. Kd4 {[%clk 0:00:54]}  Kd6 {[%clk 0:00:08]} 60. Ne6 {[%clk 0:00:52]}  c5+ {[%clk 0:00:09]} 61. Ke4 {[%clk 0:00:52]}  b4 {[%clk 0:00:09]} 62. Kd3 {[%clk 0:00:52]}  Kd5 {[%clk 0:00:09]} 63. Nf4+ {[%clk 0:00:52]}  Ke5 {[%clk 0:00:09]} 64. Nh5 {[%clk 0:00:52]}  Kxf5 {[%clk 0:00:09]} 65. Kc4 {[%clk 0:00:53]}  Ke6 {[%clk 0:00:09]} 66. Nf4+ {[%clk 0:00:53]}  Ke5 {[%clk 0:00:09]} 67. Nd3+ {[%clk 0:00:53]}  Ke4 {[%clk 0:00:10]} 68. Nf2+ {[%clk 0:00:52]}  Ke3 {[%clk 0:00:10]} 69. Ng4+ {[%clk 0:00:53]}  Kf4 {[%clk 0:00:10]} 70. Nh6 {[%clk 0:00:52]}  f5 {[%clk 0:00:10]} 71. Kb3 {[%clk 0:00:49]}  Ke4 {[%clk 0:00:11]} 72. Nf7 {[%clk 0:00:49]}  f4 {[%clk 0:00:11]} 73. Ng5+ {[%clk 0:00:48]}  Kd5 {[%clk 0:00:12]} 74. Nh3 {[%clk 0:00:48]}  f3 {[%clk 0:00:10]} 75. Nf2 {[%clk 0:00:46]}  Kd4 {[%clk 0:00:10]} 76. Kc2 {[%clk 0:00:46]}  Ke3 {[%clk 0:00:10]} 77. Ng4+ {[%clk 0:00:46]}  Ke2 {[%clk 0:00:11]} 78. Nh2 {[%clk 0:00:46]}  f2 {[%clk 0:00:11]} 0-1


[Site "https://www.chess.com"]

[Event "Titled Tuesday Blitz July 27 2021"]
[White "Molina, Roberto Junio Brito"]
[Black "Makhnev, Denis"]
[WhiteFideId "2109450"]
[BlackFideId "13707647"]
[WhiteElo "2402"]
[BlackElo "2537"]
[Result "0-1"]
[Round "06"]
[TimeControl "180+1"]
[Date "2021.07.27"]
[WhiteClock "0:00:44"]
[BlackClock "0:00:20"]

1. d4 {[%clk 0:03:00]}  d5 {[%clk 0:02:59]} 2. c4 {[%clk 0:03:01]}  e6 {[%clk 0:02:59]} 3. Nc3 {[%clk 0:03:01]}  c6 {[%clk 0:02:58]} 4. e3 {[%clk 0:02:57]}  Nf6 {[%clk 0:02:57]} 5. Nf3 {[%clk 0:02:56]}  Bd6 {[%clk 0:02:50]} 6. Qc2 {[%clk 0:02:56]}  Nbd7 {[%clk 0:02:49]} 7. Be2 {[%clk 0:02:55]}  O-O {[%clk 0:02:48]} 8. b3 {[%clk 0:02:55]}  a6 {[%clk 0:02:45]} 9. Bb2 {[%clk 0:02:52]}  b5 {[%clk 0:02:45]} 10. O-O {[%clk 0:02:52]}  Bb7 {[%clk 0:02:44]} 11. a4 {[%clk 0:02:46]}  b4 {[%clk 0:02:43]} 12. Nb1 {[%clk 0:02:45]}  c5 {[%clk 0:02:40]} 13. Nbd2 {[%clk 0:02:45]}  Rc8 {[%clk 0:02:39]} 14. Rac1 {[%clk 0:02:45]}  Qe7 {[%clk 0:02:34]} 15. Rfd1 {[%clk 0:02:44]}  cxd4 {[%clk 0:02:27]} 16. Nxd4 {[%clk 0:02:43]}  g6 {[%clk 0:02:27]} 17. Qb1 {[%clk 0:02:41]}  Ne5 {[%clk 0:02:22]} 18. N4f3 {[%clk 0:02:40]}  Nfd7 {[%clk 0:02:16]} 19. cxd5 {[%clk 0:02:31]}  Rxc1 {[%clk 0:02:13]} 20. Rxc1 {[%clk 0:02:27]}  Bxd5 {[%clk 0:02:13]} 21. Nxe5 {[%clk 0:02:14]}  Nxe5 {[%clk 0:02:14]} 22. Bxa6 {[%clk 0:02:13]}  Ng4 {[%clk 0:01:53]} 23. h3 {[%clk 0:02:10]}  Nxe3 {[%clk 0:01:48]} 24. fxe3 {[%clk 0:02:04]}  Qg5 {[%clk 0:01:48]} 25. e4 {[%clk 0:02:02]}  Qe3+ {[%clk 0:01:47]} 26. Kh1 {[%clk 0:02:00]}  Qxd2 {[%clk 0:01:47]} 27. exd5 {[%clk 0:01:59]}  Qf4 {[%clk 0:01:48]} 28. Kg1 {[%clk 0:01:56]}  Qe3+ {[%clk 0:01:38]} 29. Kh1 {[%clk 0:01:56]}  Qg3 {[%clk 0:01:37]} 30. Kg1 {[%clk 0:01:56]}  Qh2+ {[%clk 0:01:33]} 31. Kf2 {[%clk 0:01:52]}  Bg3+ {[%clk 0:01:06]} 32. Kf3 {[%clk 0:01:48]}  Bf4 {[%clk 0:01:07]} 33. Kf2 {[%clk 0:01:18]}  Bg3+ {[%clk 0:00:39]} 34. Kf3 {[%clk 0:01:17]}  Bh4 {[%clk 0:00:39]} 35. Qe4 {[%clk 0:01:04]}  Qg3+ {[%clk 0:00:39]} 36. Ke2 {[%clk 0:01:05]}  Qf2+ {[%clk 0:00:39]} 37. Kd1 {[%clk 0:01:01]}  Qxb2 {[%clk 0:00:29]} 38. Qxh4 {[%clk 0:01:01]}  Qxb3+ {[%clk 0:00:29]} 39. Ke1 {[%clk 0:01:00]}  Qe3+ {[%clk 0:00:27]} 40. Kd1 {[%clk 0:00:58]}  Qg1+ {[%clk 0:00:24]} 41. Qe1 {[%clk 0:00:57]}  Qxg2 {[%clk 0:00:22]} 42. d6 {[%clk 0:00:52]}  Rd8 {[%clk 0:00:21]} 43. Rc8 {[%clk 0:00:45]}  Rxc8 {[%clk 0:00:21]} 44. Bxc8 {[%clk 0:00:45]}  b3 {[%clk 0:00:21]} 45. d7 {[%clk 0:00:44]}  Qc2# {[%clk 0:00:20]} 0-1


[Site "https://www.chess.com"]

[Event "Titled Tuesday Blitz July 27 2021"]
[White "Murzin, Volodar"]
[Black "Karwowski, Kacper"]
[WhiteFideId "44155573"]
[BlackFideId "1126032"]
[WhiteElo "2541"]
[BlackElo "2162"]
[Result "1-0"]
[Round "06"]
[TimeControl "180+1"]
[Date "2021.07.27"]
[WhiteClock "0:00:08"]
[BlackClock "0:00:04"]

1. e4 {[%clk 0:03:00]}  c6 {[%clk 0:02:58]} 2. Nf3 {[%clk 0:02:58]}  d5 {[%clk 0:02:57]} 3. exd5 {[%clk 0:02:59]}  cxd5 {[%clk 0:02:57]} 4. Ne5 {[%clk 0:02:59]}  Nc6 {[%clk 0:02:52]} 5. Bb5 {[%clk 0:02:57]}  Bd7 {[%clk 0:02:52]} 6. Bxc6 {[%clk 0:02:57]}  bxc6 {[%clk 0:02:50]} 7. O-O {[%clk 0:02:57]}  g6 {[%clk 0:02:39]} 8. d4 {[%clk 0:02:45]}  Bg7 {[%clk 0:02:35]} 9. Re1 {[%clk 0:02:45]}  Nf6 {[%clk 0:02:31]} 10. c4 {[%clk 0:02:44]}  Ng8 {[%clk 0:02:31]} 11. Nc3 {[%clk 0:02:39]}  Nf6 {[%clk 0:02:29]} 12. Bg5 {[%clk 0:02:38]}  O-O {[%clk 0:02:22]} 13. c5 {[%clk 0:02:35]}  Qc8 {[%clk 0:02:16]} 14. b4 {[%clk 0:02:32]}  a5 {[%clk 0:01:52]} 15. a3 {[%clk 0:02:17]}  axb4 {[%clk 0:01:50]} 16. axb4 {[%clk 0:02:17]}  Rb8 {[%clk 0:01:49]} 17. Qa4 {[%clk 0:01:55]}  h6 {[%clk 0:01:40]} 18. Bxf6 {[%clk 0:01:45]}  Bxf6 {[%clk 0:01:41]} 19. Nxd5 {[%clk 0:01:44]}  Be8 {[%clk 0:00:41]} 20. Nxf6+ {[%clk 0:01:24]}  exf6 {[%clk 0:00:42]} 21. Nc4 {[%clk 0:01:24]}  Qd8 {[%clk 0:00:32]} 22. Nd6 {[%clk 0:01:21]}  Bd7 {[%clk 0:00:31]} 23. Qa5 {[%clk 0:01:12]}  Be6 {[%clk 0:00:22]} 24. Qxd8 {[%clk 0:01:06]}  Rfxd8 {[%clk 0:00:22]} 25. Reb1 {[%clk 0:01:07]}  Bd5 {[%clk 0:00:19]} 26. f3 {[%clk 0:01:02]}  g5 {[%clk 0:00:11]} 27. Kf2 {[%clk 0:01:01]}  h5 {[%clk 0:00:10]} 28. Ra7 {[%clk 0:00:49]}  h4 {[%clk 0:00:05]} 29. g3 {[%clk 0:00:44]}  hxg3+ {[%clk 0:00:05]} 30. hxg3 {[%clk 0:00:45]}  Ra8 {[%clk 0:00:06]} 31. Rxa8 {[%clk 0:00:44]}  Rxa8 {[%clk 0:00:07]} 32. Rb2 {[%clk 0:00:44]}  Ra3 {[%clk 0:00:05]} 33. Ne4 {[%clk 0:00:40]}  Kg7 {[%clk 0:00:05]} 34. g4 {[%clk 0:00:32]}  Kg6 {[%clk 0:00:04]} 35. b5 {[%clk 0:00:28]}  cxb5 {[%clk 0:00:05]} 36. Rxb5 {[%clk 0:00:29]}  Ra2+ {[%clk 0:00:05]} 37. Kg3 {[%clk 0:00:27]}  Ra3 {[%clk 0:00:06]} 38. Kg2 {[%clk 0:00:20]}  Ra2+ {[%clk 0:00:06]} 39. Kg1 {[%clk 0:00:18]}  Ra3 {[%clk 0:00:05]} 40. Kf2 {[%clk 0:00:15]}  Ra2+ {[%clk 0:00:04]} 41. Ke1 {[%clk 0:00:15]}  Ra3 {[%clk 0:00:04]} 42. Kd2 {[%clk 0:00:12]}  Rxf3 {[%clk 0:00:03]} 43. Nc3 {[%clk 0:00:12]}  Bc4 {[%clk 0:00:02]} 44. c6 {[%clk 0:00:10]}  Bxb5 {[%clk 0:00:02]} 45. Nxb5 {[%clk 0:00:10]}  Rf2+ {[%clk 0:00:02]} 46. Kc3 {[%clk 0:00:09]}  Rf1 {[%clk 0:00:03]} 47. Na3 {[%clk 0:00:09]}  Ra1 {[%clk 0:00:02]} 48. Kb3 {[%clk 0:00:07]}  Rc1 {[%clk 0:00:01]} 49. Nc4 {[%clk 0:00:04]}  Rb1+ {[%clk 0:00:02]} 50. Kc3 {[%clk 0:00:04]}  Rb8 {[%clk 0:00:02]} 51. d5 {[%clk 0:00:05]}  f5 {[%clk 0:00:02]} 52. c7 {[%clk 0:00:04]}  Rc8 {[%clk 0:00:02]} 53. d6 {[%clk 0:00:05]}  fxg4 {[%clk 0:00:03]} 54. d7 {[%clk 0:00:05]}  Rxc7 {[%clk 0:00:03]} 55. d8=Q {[%clk 0:00:06]}  Rxc4+ {[%clk 0:00:03]} 56. Kxc4 {[%clk 0:00:06]}  Kf5 {[%clk 0:00:04]} 57. Qd4 {[%clk 0:00:06]}  g3 {[%clk 0:00:04]} 58. Kd3 {[%clk 0:00:06]}  f6 {[%clk 0:00:04]} 59. Ke2 {[%clk 0:00:07]}  g4 {[%clk 0:00:03]} 60. Kf1 {[%clk 0:00:07]}  Kg5 {[%clk 0:00:03]} 61. Kg2 {[%clk 0:00:08]}  f5 {[%clk 0:00:04]} 62. Kxg3 {[%clk 0:00:08]} 1-0


[Site "https://www.chess.com"]

[Event "Titled Tuesday Blitz July 27 2021"]
[White "Nakamura, Hikaru"]
[Black "Nogerbek, Kazybek"]
[WhiteFideId "2016192"]
[BlackFideId "13710427"]
[WhiteElo "2900"]
[BlackElo "2466"]
[Result "1-0"]
[Round "06"]
[TimeControl "180+1"]
[Date "2021.07.27"]
[WhiteClock "0:01:00"]
[BlackClock "0:00:50"]

1. Nf3 {[%clk 0:02:58]}  Nf6 {[%clk 0:02:58]} 2. b3 {[%clk 0:02:58]}  g6 {[%clk 0:02:58]} 3. Bb2 {[%clk 0:02:58]}  Bg7 {[%clk 0:02:58]} 4. d4 {[%clk 0:02:59]}  O-O {[%clk 0:02:57]} 5. e3 {[%clk 0:03:00]}  b6 {[%clk 0:02:54]} 6. Be2 {[%clk 0:02:59]}  Bb7 {[%clk 0:02:55]} 7. O-O {[%clk 0:03:00]}  c5 {[%clk 0:02:56]} 8. dxc5 {[%clk 0:02:59]}  bxc5 {[%clk 0:02:55]} 9. c4 {[%clk 0:03:00]}  d6 {[%clk 0:02:51]} 10. Qc2 {[%clk 0:02:57]}  Nbd7 {[%clk 0:02:48]} 11. Nc3 {[%clk 0:02:56]}  Ne4 {[%clk 0:02:49]} 12. Na4 {[%clk 0:02:48]}  Nef6 {[%clk 0:02:44]} 13. Nd2 {[%clk 0:02:45]}  Bc6 {[%clk 0:02:39]} 14. Nc3 {[%clk 0:02:45]}  a5 {[%clk 0:02:40]} 15. a4 {[%clk 0:02:42]}  Ne5 {[%clk 0:02:34]} 16. Nb5 {[%clk 0:02:42]}  Bb7 {[%clk 0:02:33]} 17. Bxe5 {[%clk 0:02:39]}  dxe5 {[%clk 0:02:33]} 18. Rad1 {[%clk 0:02:38]}  Qb8 {[%clk 0:02:23]} 19. Bf3 {[%clk 0:02:36]}  Bxf3 {[%clk 0:02:22]} 20. Nxf3 {[%clk 0:02:36]}  e4 {[%clk 0:02:23]} 21. Nd2 {[%clk 0:02:35]}  Qe5 {[%clk 0:02:20]} 22. Rfe1 {[%clk 0:02:29]}  Rfd8 {[%clk 0:02:17]} 23. h3 {[%clk 0:02:26]}  Kf8 {[%clk 0:01:43]} 24. Nc3 {[%clk 0:01:51]}  Ng4 {[%clk 0:01:39]} 25. Ndxe4 {[%clk 0:01:50]}  Qh2+ {[%clk 0:01:38]} 26. Kf1 {[%clk 0:01:50]}  Nh6 {[%clk 0:01:25]} 27. Rxd8+ {[%clk 0:01:43]}  Rxd8 {[%clk 0:01:25]} 28. Ne2 {[%clk 0:01:31]}  Nf5 {[%clk 0:01:16]} 29. Rd1 {[%clk 0:01:27]}  Rc8 {[%clk 0:01:12]} 30. Ng5 {[%clk 0:01:09]}  Nh4 {[%clk 0:01:01]} 31. Qe4 {[%clk 0:01:09]}  Bf6 {[%clk 0:00:55]} 32. Qxh4 {[%clk 0:01:01]}  h5 {[%clk 0:00:48]} 33. Nh7+ {[%clk 0:01:00]}  Kg7 {[%clk 0:00:49]} 34. Nxf6 {[%clk 0:01:01]}  exf6 {[%clk 0:00:50]} 35. Qf4 {[%clk 0:01:00]} 1-0


[Site "https://www.chess.com"]

[Event "Titled Tuesday Blitz July 27 2021"]
[White "Nastore, Pavel-Alexandru"]
[Black "Ovchinnikov, Vsevolod"]
[WhiteFideId "1255002"]
[BlackFideId "24176842"]
[WhiteElo "1763"]
[BlackElo "2376"]
[Result "0-1"]
[Round "06"]
[TimeControl "180+1"]
[Date "2021.07.27"]
[WhiteClock "0:00:12"]
[BlackClock "0:00:17"]

1. e4 {[%clk 0:02:58]}  g6 {[%clk 0:02:59]} 2. d4 {[%clk 0:02:41]}  Bg7 {[%clk 0:02:59]} 3. c4 {[%clk 0:02:36]}  d6 {[%clk 0:02:58]} 4. Nc3 {[%clk 0:02:35]}  Nf6 {[%clk 0:02:59]} 5. Be2 {[%clk 0:02:33]}  Na6 {[%clk 0:02:55]} 6. Be3 {[%clk 0:02:33]}  O-O {[%clk 0:02:50]} 7. Qd2 {[%clk 0:02:26]}  c5 {[%clk 0:02:48]} 8. d5 {[%clk 0:02:26]}  e6 {[%clk 0:02:48]} 9. f3 {[%clk 0:02:21]}  exd5 {[%clk 0:02:44]} 10. cxd5 {[%clk 0:02:21]}  Nc7 {[%clk 0:02:44]} 11. Bc4 {[%clk 0:02:03]}  Re8 {[%clk 0:02:36]} 12. Nge2 {[%clk 0:02:02]}  Rb8 {[%clk 0:02:35]} 13. a4 {[%clk 0:02:02]}  b6 {[%clk 0:02:35]} 14. Ng3 {[%clk 0:02:01]}  a6 {[%clk 0:02:31]} 15. O-O {[%clk 0:01:48]}  b5 {[%clk 0:02:29]} 16. axb5 {[%clk 0:01:48]}  axb5 {[%clk 0:02:29]} 17. Be2 {[%clk 0:01:46]}  h5 {[%clk 0:02:24]} 18. Rfc1 {[%clk 0:01:41]}  b4 {[%clk 0:02:16]} 19. Nd1 {[%clk 0:01:38]}  h4 {[%clk 0:02:06]} 20. Nf1 {[%clk 0:01:38]}  Nh5 {[%clk 0:01:51]} 21. Ra7 {[%clk 0:01:35]}  f5 {[%clk 0:01:47]} 22. Nf2 {[%clk 0:01:30]}  Rb7 {[%clk 0:01:32]} 23. Rxb7 {[%clk 0:01:29]}  Bxb7 {[%clk 0:01:33]} 24. Qc2 {[%clk 0:01:21]}  Bc8 {[%clk 0:01:29]} 25. Bc4 {[%clk 0:01:19]}  Qf6 {[%clk 0:01:27]} 26. b3 {[%clk 0:01:18]}  h3 {[%clk 0:01:15]} 27. Nxh3 {[%clk 0:00:49]}  fxe4 {[%clk 0:01:14]} 28. fxe4 {[%clk 0:00:40]}  Bxh3 {[%clk 0:01:13]} 29. gxh3 {[%clk 0:00:41]}  Qh4 {[%clk 0:01:13]} 30. Bf2 {[%clk 0:00:28]}  Qxh3 {[%clk 0:01:09]} 31. Ng3 {[%clk 0:00:27]}  Nf4 {[%clk 0:01:02]} 32. Bf1 {[%clk 0:00:28]}  Qg4 {[%clk 0:01:02]} 33. Qa2 {[%clk 0:00:16]}  Ra8 {[%clk 0:00:58]} 34. Qc2 {[%clk 0:00:16]}  Be5 {[%clk 0:00:58]} 35. Qd1 {[%clk 0:00:12]}  Nh3+ {[%clk 0:00:34]} 36. Bxh3 {[%clk 0:00:12]}  Qxh3 {[%clk 0:00:35]} 37. Qf3 {[%clk 0:00:12]}  Rf8 {[%clk 0:00:30]} 38. Qg2 {[%clk 0:00:13]}  Qxg2+ {[%clk 0:00:30]} 39. Kxg2 {[%clk 0:00:14]}  Nb5 {[%clk 0:00:30]} 40. Ne2 {[%clk 0:00:12]}  Ra8 {[%clk 0:00:26]} 41. Kf3 {[%clk 0:00:12]}  Ra3 {[%clk 0:00:22]} 42. Kg4 {[%clk 0:00:09]}  Rxb3 {[%clk 0:00:22]} 43. Kg5 {[%clk 0:00:10]}  Kg7 {[%clk 0:00:20]} 44. Nf4 {[%clk 0:00:10]}  Rf3 {[%clk 0:00:14]} 45. Ne6+ {[%clk 0:00:10]}  Kh7 {[%clk 0:00:12]} 46. Bxc5 {[%clk 0:00:03]}  dxc5 {[%clk 0:00:11]} 47. Rxc5 {[%clk 0:00:03]}  Nd4 {[%clk 0:00:10]} 48. Rc7+ {[%clk 0:00:04]}  Bxc7 {[%clk 0:00:10]} 49. Nxc7 {[%clk 0:00:04]}  b3 {[%clk 0:00:10]} 50. Ne6 {[%clk 0:00:03]}  Nxe6+ {[%clk 0:00:10]} 51. dxe6 {[%clk 0:00:04]}  Rf8 {[%clk 0:00:10]} 52. e7 {[%clk 0:00:05]}  Re8 {[%clk 0:00:10]} 53. Kf6 {[%clk 0:00:06]}  b2 {[%clk 0:00:11]} 54. Kf7 {[%clk 0:00:06]}  Rxe7+ {[%clk 0:00:12]} 55. Kxe7 {[%clk 0:00:07]}  b1=Q {[%clk 0:00:13]} 56. Kf6 {[%clk 0:00:08]}  Qxe4 {[%clk 0:00:13]} 57. h4 {[%clk 0:00:08]}  Qf5+ {[%clk 0:00:13]} 58. Ke7 {[%clk 0:00:08]}  Qh5 {[%clk 0:00:13]} 59. Kf8 {[%clk 0:00:08]}  Qxh4 {[%clk 0:00:14]} 60. Kf7 {[%clk 0:00:09]}  Qh6 {[%clk 0:00:13]} 61. Ke8 {[%clk 0:00:08]}  Qg7 {[%clk 0:00:13]} 62. Kd8 {[%clk 0:00:08]}  g5 {[%clk 0:00:14]} 63. Kc8 {[%clk 0:00:09]}  Kg6 {[%clk 0:00:14]} 64. Kb8 {[%clk 0:00:10]}  Kf6 {[%clk 0:00:15]} 65. Ka8 {[%clk 0:00:11]}  Ke6 {[%clk 0:00:15]} 66. Kb8 {[%clk 0:00:11]}  Kd6 {[%clk 0:00:16]} 67. Ka8 {[%clk 0:00:12]}  Kc6 {[%clk 0:00:17]} 68. Kb8 {[%clk 0:00:12]}  Qb7# {[%clk 0:00:17]} 0-1


[Site "https://www.chess.com"]

[Event "Titled Tuesday Blitz July 27 2021"]
[White "Ozates, Tuna"]
[Black "Do Valle Cardoso, Lucas"]
[WhiteFideId "6354521"]
[BlackFideId "2163144"]
[WhiteElo "1872"]
[BlackElo "2387"]
[Result "1-0"]
[Round "06"]
[TimeControl "180+1"]
[Date "2021.07.27"]
[WhiteClock "0:00:22"]
[BlackClock "0:00:05"]

1. d4 {[%clk 0:03:00]}  d5 {[%clk 0:03:00]} 2. c4 {[%clk 0:02:59]}  dxc4 {[%clk 0:03:01]} 3. Nc3 {[%clk 0:02:58]}  Nf6 {[%clk 0:02:58]} 4. e3 {[%clk 0:02:58]}  e5 {[%clk 0:02:58]} 5. Bxc4 {[%clk 0:02:58]}  exd4 {[%clk 0:02:59]} 6. exd4 {[%clk 0:02:59]}  Bd6 {[%clk 0:02:58]} 7. Nf3 {[%clk 0:03:00]}  O-O {[%clk 0:02:59]} 8. h3 {[%clk 0:03:00]}  h6 {[%clk 0:02:59]} 9. O-O {[%clk 0:03:00]}  Nc6 {[%clk 0:03:00]} 10. a3 {[%clk 0:03:00]}  a6 {[%clk 0:03:00]} 11. Re1 {[%clk 0:02:58]}  Bf5 {[%clk 0:03:00]} 12. Be3 {[%clk 0:02:51]}  Re8 {[%clk 0:02:55]} 13. Qb3 {[%clk 0:02:46]}  Qd7 {[%clk 0:02:56]} 14. Qa2 {[%clk 0:02:38]}  Na5 {[%clk 0:02:50]} 15. Bf1 {[%clk 0:02:33]}  Be6 {[%clk 0:02:50]} 16. Qb1 {[%clk 0:02:23]}  Nb3 {[%clk 0:02:49]} 17. Ra2 {[%clk 0:02:22]}  Nd5 {[%clk 0:02:40]} 18. Ne4 {[%clk 0:02:07]}  Bf8 {[%clk 0:02:30]} 19. Bd3 {[%clk 0:02:05]}  f5 {[%clk 0:02:21]} 20. Nc3 {[%clk 0:02:00]}  f4 {[%clk 0:02:19]} 21. Ne5 {[%clk 0:01:40]}  Qd8 {[%clk 0:01:43]} 22. Bh7+ {[%clk 0:01:39]}  Kh8 {[%clk 0:01:44]} 23. Bc1 {[%clk 0:01:14]}  Nxc1 {[%clk 0:01:31]} 24. Ng6+ {[%clk 0:01:09]}  Kxh7 {[%clk 0:01:31]} 25. Nxf8+ {[%clk 0:01:09]}  Kg8 {[%clk 0:01:31]} 26. Nxe6 {[%clk 0:01:09]}  Rxe6 {[%clk 0:01:30]} 27. Rxe6 {[%clk 0:01:08]}  Nxa2 {[%clk 0:01:27]} 28. Qxa2 {[%clk 0:01:02]}  c6 {[%clk 0:01:25]} 29. Re5 {[%clk 0:01:01]}  Kh8 {[%clk 0:01:14]} 30. Nxd5 {[%clk 0:01:01]}  cxd5 {[%clk 0:01:14]} 31. Qxd5 {[%clk 0:01:02]}  Qb6 {[%clk 0:01:12]} 32. b4 {[%clk 0:01:01]}  Rd8 {[%clk 0:01:12]} 33. Qe4 {[%clk 0:01:01]}  Qc6 {[%clk 0:00:57]} 34. d5 {[%clk 0:00:57]}  Qc1+ {[%clk 0:00:52]} 35. Kh2 {[%clk 0:00:57]}  Qd2 {[%clk 0:00:52]} 36. f3 {[%clk 0:00:50]}  Rc8 {[%clk 0:00:41]} 37. Re8+ {[%clk 0:00:48]}  Rxe8 {[%clk 0:00:41]} 38. Qxe8+ {[%clk 0:00:49]}  Kh7 {[%clk 0:00:42]} 39. Qe4+ {[%clk 0:00:49]}  Kg8 {[%clk 0:00:29]} 40. Qe6+ {[%clk 0:00:36]}  Kh8 {[%clk 0:00:25]} 41. d6 {[%clk 0:00:34]}  Qf2 {[%clk 0:00:11]} 42. Qe8+ {[%clk 0:00:33]}  Kh7 {[%clk 0:00:10]} 43. Qe4+ {[%clk 0:00:34]}  Kg8 {[%clk 0:00:10]} 44. Qxf4 {[%clk 0:00:34]}  Qb6 {[%clk 0:00:08]} 45. d7 {[%clk 0:00:29]}  Qd8 {[%clk 0:00:07]} 46. Qf5 {[%clk 0:00:26]}  Qc7+ {[%clk 0:00:05]} 47. f4 {[%clk 0:00:26]}  Qd8 {[%clk 0:00:06]} 48. Qe6+ {[%clk 0:00:25]}  Kf8 {[%clk 0:00:06]} 49. Qd5 {[%clk 0:00:16]}  Ke7 {[%clk 0:00:05]} 50. Kg3 {[%clk 0:00:15]}  Qxd7 {[%clk 0:00:04]} 51. Qxd7+ {[%clk 0:00:16]}  Kxd7 {[%clk 0:00:05]} 52. f5 {[%clk 0:00:16]}  Ke7 {[%clk 0:00:03]} 53. Kf4 {[%clk 0:00:17]}  Kf6 {[%clk 0:00:02]} 54. g4 {[%clk 0:00:17]}  g6 {[%clk 0:00:02]} 55. fxg6 {[%clk 0:00:17]}  Kxg6 {[%clk 0:00:02]} 56. h4 {[%clk 0:00:18]}  Kf6 {[%clk 0:00:03]} 57. g5+ {[%clk 0:00:17]}  hxg5+ {[%clk 0:00:03]} 58. hxg5+ {[%clk 0:00:18]}  Kg6 {[%clk 0:00:04]} 59. Kg4 {[%clk 0:00:19]}  b6 {[%clk 0:00:03]} 60. Kf4 {[%clk 0:00:18]}  a5 {[%clk 0:00:03]} 61. b5 {[%clk 0:00:17]}  Kg7 {[%clk 0:00:02]} 62. Kf5 {[%clk 0:00:18]}  Kf7 {[%clk 0:00:03]} 63. g6+ {[%clk 0:00:18]}  Kg7 {[%clk 0:00:03]} 64. Kg5 {[%clk 0:00:19]}  Kg8 {[%clk 0:00:03]} 65. Kf6 {[%clk 0:00:20]}  Kf8 {[%clk 0:00:04]} 66. Ke6 {[%clk 0:00:20]}  Kg7 {[%clk 0:00:04]} 67. Kd6 {[%clk 0:00:21]}  Kxg6 {[%clk 0:00:05]} 68. Kc6 {[%clk 0:00:22]} 1-0


[Site "https://www.chess.com"]